fUST/lending_fUST_20241225
["ID","MTS","AMOUNT","RATE_DAILY","PERIOD"]
[346635634,1735136947461,-500.0,0.00010077,2]
[346635635,1735136947482,-491.19792382,0.00010077,2]
[346635636,1735136947503,-500.0,0.00010077,2]
[346635637,1735136947523,-500.0,0.00010077,2]
[346635638,1735136947544,-500.0,0.00010077,2]
[346635639,1735136947565,-500.0,0.00010077,2]
[346635640,1735136947585,-500.0,0.00010077,2]
[346635641,1735136947607,-500.0,0.00010077,2]
[346635642,1735136947628,-500.0,0.00010077,2]
[346635643,1735136947653,-500.0,0.00010077,2]
[346635644,1735136947673,-500.0,0.00010077,2]
[346635645,1735136947696,-500.0,0.00010077,2]
[346635646,1735136947718,-498.70148102,0.00010077,2]
[346635647,1735136947738,-500.0,0.00010077,2]
[346635648,1735136947758,-500.0,0.00010077,2]
[346635649,1735136947779,-500.0,0.00010077,2]
[346635650,1735136947799,-500.0,0.00010077,2]
[346635651,1735136947820,-1233.34,0.00010077,2]
[346635652,1735136947842,-1880.01,0.00010077,2]
[346635653,1735136947862,-500.0,0.00010077,2]
[346635654,1735136947882,-634.24,0.00010077,2]
[346635655,1735136947903,-500.0,0.00010077,2]
[346635656,1735136947923,-500.0,0.00010077,2]
[346635657,1735136947945,-500.0,0.00010077,2]
[346635658,1735136947965,-500.0,0.00010077,2]
[346635659,1735136947988,-500.0,0.00010077,2]
[346635660,1735136948010,-500.0,0.00010077,2]
[346635661,1735136948031,-500.0,0.00010077,2]
[346635662,1735136948052,-500.0,0.00010077,2]
[346635663,1735136948074,-500.0,0.00010077,2]
[346635664,1735136948095,-500.0,0.00010077,2]
[346635665,1735136948230,-500.0,0.00010077,2]
[346635666,1735136948251,-500.0,0.00010078,2]
[346635667,1735136948273,-500.0,0.00010078,2]
[346635668,1735136948294,-500.0,0.00010078,2]
[346635669,1735136948316,-500.0,0.00010078,2]
[346635670,1735136948337,-500.0,0.00010078,2]
[346635671,1735136948360,-500.0,0.00010078,2]
[346635672,1735136948383,-500.0,0.00010078,2]
[346635673,1735136948404,-612.29664106,0.00010078,2]
[346635674,1735136948426,-500.0,0.00010078,2]
[346635675,1735136948447,-638.23,0.00010078,2]
[346635676,1735136948468,-583.67,0.00010078,2]
[346635677,1735136948489,-500.0,0.00010078,2]
[346635678,1735136948510,-500.0,0.00010078,2]
[346635679,1735136948530,-500.0,0.00010078,2]
[346635680,1735136948551,-500.0,0.00010078,2]
[346635681,1735136948571,-500.0,0.00010078,2]
[346635682,1735136948592,-563.47,0.00010078,2]
[346635683,1735136948613,-500.0,0.00010078,2]
[346635684,1735136948636,-500.0,0.00010078,2]
[346635685,1735136948661,-500.0,0.00010078,2]
[346635686,1735136948684,-500.0,0.00010078,2]
[346635687,1735136948705,-500.0,0.00010078,2]
[346635688,1735136948728,-500.0,0.00010078,2]
[346635689,1735136948749,-500.0,0.00010078,2]
[346635690,1735136948770,-500.0,0.00010078,2]
[346635691,1735136948790,-500.0,0.00010078,2]
[346635692,1735136948812,-500.0,0.00010078,2]
[346635693,1735136948833,-500.0,0.00010078,2]
[346635694,1735136948854,-500.0,0.00010078,2]
[346635695,1735136948876,-500.0,0.00010078,2]
[346635696,1735136948897,-500.0,0.00010078,2]
[346635697,1735136948918,-500.0,0.00010078,2]
[346635698,1735136948942,-500.0,0.00010078,2]
[346635699,1735136948964,-500.0,0.00010078,2]
[346635700,1735136948987,-500.0,0.00010078,2]
[346635701,1735136949008,-185.33441065,0.00010078,2]
[346635702,1735136949030,-530.32,0.00010078,2]
[346635703,1735136949051,-644.74,0.00010078,2]
[346635704,1735136949071,-500.0,0.00010078,2]
[346635705,1735136949092,-600.46,0.00010078,2]
[346635706,1735136949112,-500.0,0.00010078,2]
[346635707,1735136949133,-548.02,0.00010078,2]
[346635708,1735136949153,-500.0,0.00010078,2]
[346635709,1735136949174,-7847.46,0.00010078,2]
[346635710,1735136949196,-500.0,0.00010078,2]
[346635711,1735136949217,-500.0,0.00010078,2]
[346635712,1735136949239,-500.0,0.00010078,2]
[346635713,1735136949262,-500.0,0.00010078,2]
[346635714,1735136949283,-500.0,0.00010078,2]
[346635715,1735136949305,-500.0,0.00010078,2]
[346635716,1735136949327,-500.0,0.00010078,2]
[346635717,1735136949349,-554.5674903,0.00010078,2]
[346635718,1735136949370,-500.0,0.00010078,2]
[346635719,1735136949391,-197.70814412,0.00010078,2]
[346635720,1735136949412,-500.0,0.00010079,2]
[346635721,1735136949434,-500.0,0.00010079,2]
[346635722,1735136949455,-500.0,0.00010079,2]
[346635723,1735136949476,-500.0,0.00010079,2]
[346635724,1735136949495,-500.0,0.00010079,2]
[346635725,1735136949517,-500.0,0.00010351,2]
[346635726,1735136949539,-500.0,0.00010351,2]
[346635727,1735136949562,-331.42,0.00010351,2]
[346635728,1735136949583,-1233.34,0.00010351,2]
[346635729,1735136949605,-1880.01,0.00010351,2]
[346635730,1735136949627,-634.24,0.00010351,2]
[346635731,1735136949650,-500.0,0.00010351,2]
[346635732,1735136949671,-500.0,0.00010351,2]
[346635733,1735136949701,-500.0,0.00010351,2]
[346635734,1735136949727,-555.64,0.00010352,2]
[346635735,1735136949754,-500.0,0.00010352,2]
[346635736,1735136949776,-248.1,0.00010352,2]
[346635737,1735136949801,-174.6,0.00010352,2]
[346635738,1735136949828,-184.93,0.00010352,2]
[346635739,1735136949859,-500.0,0.00010352,2]
[346635740,1735136949885,-563.47,0.00010352,2]
[346635741,1735136949912,-462.3266141,0.00010352,2]
[346635742,1735136963207,-500.0,0.00010077,2]
[346635744,1735136963240,-134.37771024,0.00010077,2]
[346635748,1735136964102,-500.0,0.00010076,2]
[346635749,1735136964127,-365.62228976,0.00010077,2]
[346635750,1735136964313,-114.37771024,0.00010078,2]
[346635751,1735136988096,-500.0,0.00010076,2]
[346635752,1735136988128,-500.0,0.00010077,2]
[346635753,1735136988156,-169.72854488,0.00010077,2]
[346635754,1735136988187,-330.27145512,0.00010077,2]
[346635755,1735136988214,-839.45708976,0.00010077,2]
[346635756,1735136988300,-277.57747562,0.00010077,2]
[346635813,1735137032429,-392.57740896,0.00010077,2]
[346635815,1735137032440,-253.12568332,0.00010077,2]
[346636296,1735137038408,-380.39234234,0.00010077,2]
[346636297,1735137038418,-193.47,0.00010077,2]
[346636299,1735137038427,-500.0,0.00010077,2]
[346636300,1735137038437,-500.0,0.00010077,2]
[346636303,1735137038447,-300.0,0.00010077,2]
[346636305,1735137038458,-500.0,0.00010077,2]
[346636306,1735137038467,-457.72,0.00010077,2]
[346636307,1735137038476,-385.62228976,0.00010078,2]
[346636308,1735137038485,-500.0,0.00010078,2]
[346636309,1735137038494,-500.0,0.00010078,2]
[346636310,1735137038503,-500.0,0.00010078,2]
[346636311,1735137038513,-500.0,0.00010078,2]
[346636312,1735137038522,-500.0,0.00010078,2]
[346636313,1735137038531,-500.0,0.00010078,2]
[346636314,1735137038540,-500.0,0.00010078,2]
[346636315,1735137038549,-422.2365846,0.00010078,2]
[346636347,1735137040600,-500.0,0.00010076,2]
[346636349,1735137040610,-77.7634154,0.00010078,2]
[346636351,1735137040620,-500.0,0.00010078,2]
[346636353,1735137040630,-1225.76,0.00010078,2]
[346636355,1735137040639,-500.0,0.00010078,2]
[346636356,1735137040649,-500.0,0.00010078,2]
[346636358,1735137040659,-500.0,0.00010078,2]
[346636360,1735137040671,-500.0,0.0001035,2]
[346636362,1735137040681,-500.0,0.0001035,2]
[346636364,1735137040690,-506.55,0.00010351,2]
[346636366,1735137040700,-221.87,0.00010351,2]
[346636368,1735137040710,-500.0,0.00010351,2]
[346636370,1735137040720,-500.0,0.00010351,2]
[346636372,1735137040730,-2143.13,0.00010351,2]
[346636373,1735137040740,-518.75,0.00010351,2]
[346636375,1735137040754,-500.0,0.00010351,2]
[346636377,1735137040764,-500.0,0.00010351,2]
[346636379,1735137040774,-248.14,0.00010352,2]
[346636381,1735137040784,-500.0,0.00010352,2]
[346636382,1735137040793,-7847.46,0.00010352,2]
[346636384,1735137040805,-500.0,0.00010352,2]
[346636386,1735137040814,-500.0,0.00010352,2]
[346636388,1735137040824,-500.0,0.00010352,2]
[346636390,1735137040834,-1225.76,0.00010352,2]
[346636392,1735137040844,-500.0,0.00010624,2]
[346636394,1735137040854,-500.0,0.00010624,2]
[346636396,1735137040863,-634.24,0.00010625,2]
[346636398,1735137040872,-500.0,0.00010625,2]
[346636399,1735137040882,-500.0,0.00010625,2]
[346636401,1735137040891,-500.0,0.00010625,2]
[346636403,1735137040904,-500.0,0.00010625,2]
[346636405,1735137040914,-500.0,0.00010625,2]
[346636407,1735137040924,-2143.13,0.00010625,2]
[346636409,1735137040933,-500.0,0.00010625,2]
[346636411,1735137040942,-500.0,0.00010625,2]
[346636413,1735137040953,-500.0,0.00010626,2]
[346636415,1735137040962,-500.0,0.00010626,2]
[346636417,1735137040971,-500.0,0.00010626,2]
[346636418,1735137040980,-7847.46,0.00010626,2]
[346636420,1735137040991,-500.0,0.00010626,2]
[346636422,1735137041004,-500.0,0.00010626,2]
[346636424,1735137041014,-1225.76,0.00010626,2]
[346636426,1735137041023,-500.0,0.00010898,2]
[346636428,1735137041032,-634.24,0.00010899,2]
[346636430,1735137041041,-500.0,0.00010899,2]
[346636431,1735137041051,-500.0,0.00010899,2]
[346636433,1735137041060,-500.0,0.00010899,2]
[346636435,1735137041069,-500.0,0.00010899,2]
[346636437,1735137041079,-500.0,0.00010899,2]
[346636439,1735137041088,-2143.13,0.00010899,2]
[346636441,1735137041098,-500.0,0.00010899,2]
[346636443,1735137041108,-500.0,0.00010899,2]
[346636445,1735137041117,-283.84083226,0.00010899,2]
[346636447,1735137041126,-244.18979379,0.00010899,2]
[346636448,1735137041135,-500.0,0.000109,2]
[346636460,1735137041256,-500.0,0.000109,2]
[346636462,1735137041268,-500.0,0.000109,2]
[346636464,1735137041278,-500.15831573,0.000109,2]
[346636466,1735137041287,-500.0,0.000109,2]
[346636468,1735137041297,-500.0,0.000109,2]
[346636470,1735137041306,-500.0,0.000109,2]
[346636472,1735137041316,-500.0,0.000109,2]
[346636474,1735137041325,-500.0,0.000109,2]
[346636476,1735137041334,-500.0,0.000109,2]
[346636478,1735137041344,-500.0,0.000109,2]
[346636479,1735137041353,-416.46,0.000109,2]
[346636481,1735137041363,-500.0,0.000109,2]
[346636483,1735137041372,-7847.46,0.000109,2]
[346636485,1735137041381,-526.98599768,0.000109,2]
[346636487,1735137041394,-189.97,0.000109,2]
[346636489,1735137041403,-1225.76,0.000109,2]
[346636491,1735137041412,-154.0,0.00011016,2]
[346636493,1735137041422,-154.01,0.00011016,2]
[346636495,1735137041433,-151.0,0.00011083,2]
[346636497,1735137041442,-151.0,0.00011083,2]
[346636499,1735137041451,-151.0,0.00011083,2]
[346636501,1735137041460,-420.0,0.00011084,2]
[346636503,1735137041470,-738.219,0.0001113,2]
[346636505,1735137041479,-407.45903809,0.00011172,2]
[346636506,1735137041488,-151.0,0.00011173,2]
[346636508,1735137041497,-634.24,0.00011173,2]
[346636510,1735137041510,-151.0,0.00011173,2]
[346636512,1735137041520,-151.0,0.00011173,2]
[346636514,1735137041530,-595.61183349,0.00011173,2]
[346636516,1735137041540,-500.0,0.00011173,2]
[346636518,1735137041548,-489.19803984,0.00011173,2]
[346636519,1735137041558,-500.0,0.00011173,2]
[346636521,1735137041567,-500.0,0.00011173,2]
[346636523,1735137041576,-2143.13,0.00011173,2]
[346636525,1735137041587,-500.0,0.00011173,2]
[346636527,1735137041596,-500.0,0.00011173,2]
[346636529,1735137041606,-500.0,0.00011174,2]
[346636531,1735137041615,-500.0,0.00011174,2]
[346636533,1735137041624,-151.882123,0.00011174,2]
[346636534,1735137041633,-196.83853506,0.00011174,2]
[346636536,1735137041643,-7847.46,0.00011174,2]
[346636538,1735137041652,-1225.76,0.00011174,2]
[346636540,1735137041663,-219.681,0.00011217,2]
[346636542,1735137041673,-151.0,0.00011332,2]
[346636544,1735137041683,-151.0,0.00011332,2]
[346636546,1735137041692,-10573.55132803,0.00011426,2]
[346636547,1735137041701,-150.0,0.00011435,2]
[346636549,1735137041711,-151.0,0.00011447,2]
[346636551,1735137041720,-634.24,0.00011447,2]
[346636553,1735137041729,-151.0,0.00011447,2]
[346636555,1735137041738,-151.0,0.00011447,2]
[346636557,1735137041749,-500.0,0.00011447,2]
[346636558,1735137041759,-500.0,0.00011447,2]
[346636560,1735137041768,-500.0,0.00011447,2]
[346636562,1735137041777,-2143.13,0.00011447,2]
[346636564,1735137041787,-344.00975163,0.00011447,2]
[346636566,1735137041796,-374.11732919,0.00011447,2]
[346636568,1735137041806,-157.861546,0.00011448,2]
[346636570,1735137041815,-500.0,0.00011448,2]
[346636572,1735137041824,-427.17891887,0.00011448,2]
[346636574,1735137041834,-151.0,0.00011448,2]
[346636576,1735137041843,-7847.46,0.00011448,2]
[346636577,1735137041852,-1225.76,0.00011448,2]
[346636579,1735137041861,-500.0,0.00011557,2]
[346636581,1735137041870,-233.6404697,0.00011606,2]
[346636583,1735137041879,-634.24,0.00011721,2]
[346636585,1735137041889,-151.0,0.00011721,2]
[346636587,1735137041898,-500.0,0.00011721,2]
[346636589,1735137041907,-151.0,0.00011721,2]
[346636591,1735137041916,-500.0,0.00011721,2]
[346636592,1735137041925,-500.0,0.00011721,2]
[346636594,1735137041935,-2143.13,0.00011721,2]
[346636596,1735137041945,-500.0,0.00011722,2]
[346636598,1735137041954,-7847.46,0.00011722,2]
[346636600,1735137041964,-1225.76,0.00011722,2]
[346636602,1735137041973,-151.0,0.0001184,2]
[346636604,1735137041983,-634.24,0.00011995,2]
[346636606,1735137041993,-500.0,0.00011995,2]
[346636608,1735137042003,-500.0,0.00011995,2]
[346636610,1735137042013,-500.0,0.00011995,2]
[346636611,1735137042022,-2143.13,0.00011995,2]
[346636613,1735137042031,-181.53878159,0.00011995,2]
[346636615,1735137042041,-151.0,0.00011996,2]
[346636617,1735137042050,-500.0,0.00011996,2]
[346636619,1735137042060,-151.0,0.00011996,2]
[346636621,1735137042070,-7847.46,0.00011996,2]
[346636623,1735137042080,-1225.76,0.00011996,2]
[346636625,1735137042089,-352.2858095,0.00012055,2]
[346636626,1735137042099,-352.2858095,0.00012055,2]
[346636628,1735137042108,-352.2858095,0.00012055,2]
[346636630,1735137042118,-239.7215805,0.00012055,2]
[346636632,1735137042127,-1000.0,0.00012104,2]
[346636634,1735137042137,-587.0,0.00012191,2]
[346636636,1735137042147,-634.24,0.00012269,2]
[346636638,1735137042156,-151.0,0.00012269,2]
[346636640,1735137042166,-500.0,0.00012269,2]
[346636642,1735137042175,-500.0,0.00012269,2]
[346636644,1735137042185,-500.0,0.00012269,2]
[346636646,1735137042194,-2143.13,0.00012269,2]
[346636648,1735137042205,-500.0,0.0001227,2]
[346636649,1735137042214,-151.0,0.0001227,2]
[346636651,1735137042224,-7847.46,0.0001227,2]
[346636654,1735137042235,-1225.76,0.0001227,2]
[346636655,1735137042245,-500.0,0.00012405,2]
[346636657,1735137042255,-500.0,0.00012405,2]
[346636659,1735137042265,-634.24,0.00012543,2]
[346636661,1735137042274,-500.0,0.00012543,2]
[346636663,1735137042284,-500.0,0.00012543,2]
[346636665,1735137042293,-500.0,0.00012543,2]
[346636667,1735137042303,-2143.13,0.00012543,2]
[346636669,1735137042314,-151.0,0.00012544,2]
[346636671,1735137042324,-500.0,0.00012544,2]
[346636673,1735137042334,-151.0,0.00012544,2]
[346636675,1735137042343,-7847.46,0.00012544,2]
[346636677,1735137042353,-1225.76,0.00012544,2]
[346636679,1735137042363,-419.9382312,0.0001274,2]
[346636681,1735137042372,-151.0,0.00012788,2]
[346636682,1735137042382,-8715.82637576,0.00012788,2]
[346636684,1735137042391,-634.24,0.00012817,2]
[346636686,1735137042401,-151.0,0.00012817,2]
[346636688,1735137042411,-500.0,0.00012817,2]
[346636690,1735137042421,-500.0,0.00012817,2]
[346636692,1735137042432,-500.0,0.00012817,2]
[346636694,1735137042442,-2143.13,0.00012817,2]
[346636696,1735137042452,-500.0,0.00012818,2]
[346636698,1735137042462,-7847.46,0.00012818,2]
[346636700,1735137042472,-1225.76,0.00012818,2]
[346636702,1735137042482,-951.7685393,0.000129,2]
[346636704,1735137042491,-951.76853925,0.000129,2]
[346636706,1735137042503,-951.76853925,0.000129,2]
[346636707,1735137042513,-1000.0,0.00012953,2]
[346636709,1735137042522,-1000.0,0.00012953,2]
[346636711,1735137042531,-423.48879811,0.00013,2]
[346636713,1735137042540,-84133.52824813,0.00013,2]
[346636716,1735137042555,-5899.28822918,0.00013,2]
[346636718,1735137042566,-51983.88934999,0.00013,2]
[346636803,1735137043456,-500.0,0.00010898,2]
[346636804,1735137043467,-391.34,0.00011172,2]
[346636805,1735137043476,-3182.63026903,0.00013,2]
[346636809,1735137043632,-9811.8050826,0.00013,2]
[346636951,1735137047469,-313.999,0.00011435,2]
[346636952,1735137047482,-50939.08602161,0.00013,2]
[346636953,1735137059502,279.1477734,9.975e-05,2]
[346636954,1735137074728,758.4281794,9.975e-05,2]
[346636955,1735137131058,196.14740527,9.977e-05,2]
[346636956,1735137141449,258.7623541,9.975e-05,2]
[346636957,1735137144563,852.75645458,9.977e-05,2]
[346636958,1735137496171,683.3022281,9.453e-05,2]
[346636960,1735137711258,206.4663052,9.421e-05,2]
[346636962,1735138051169,-300.0,0.00010074,2]
[346636963,1735138051192,-96.46764004,0.00010074,2]
[346636964,1735138145135,-300.0,0.00010074,2]
[346636965,1735138145158,-601.38,0.00010075,2]
[346636966,1735138145180,-500.0,0.00010075,2]
[346636967,1735138145204,-500.0,0.00010075,2]
[346636968,1735138145227,-500.0,0.00010075,2]
[346636969,1735138145249,-500.0,0.00010075,2]
[346636970,1735138145272,-500.0,0.00010075,2]
[346636971,1735138145295,-500.0,0.00010075,2]
[346636972,1735138145318,-613.07,0.00010075,2]
[346636973,1735138145341,-500.0,0.00010075,2]
[346636974,1735138145364,-625.82,0.00010075,2]
[346636975,1735138145387,-500.0,0.00010075,2]
[346636976,1735138145409,-500.0,0.00010075,2]
[346636977,1735138145431,-500.0,0.00010075,2]
[346636978,1735138145453,-500.0,0.00010075,2]
[346636979,1735138145484,-566.63,0.00010075,2]
[346636980,1735138145510,-500.0,0.00010075,2]
[346636981,1735138145532,-500.0,0.00010075,2]
[346636982,1735138145554,-500.0,0.00010075,2]
[346636983,1735138145576,-500.0,0.00010075,2]
[346636984,1735138145598,-500.0,0.00010075,2]
[346636985,1735138145619,-567.28,0.00010075,2]
[346636986,1735138145640,-500.0,0.00010075,2]
[346636987,1735138145662,-500.0,0.00010075,2]
[346636988,1735138145683,-509.90282238,0.00010075,2]
[346636989,1735138145706,-500.0,0.00010075,2]
[346636990,1735138145728,-500.0,0.00010075,2]
[346636991,1735138145752,-500.0,0.00010075,2]
[346636992,1735138145774,-500.0,0.00010075,2]
[346636993,1735138145796,-500.0,0.00010075,2]
[346636994,1735138145818,-426.35916864,0.00010075,2]
[346636995,1735138145840,-512.02178123,0.00010075,2]
[346636996,1735138145862,-506.12473125,0.00010075,2]
[346636997,1735138145884,-500.0,0.00010075,2]
[346636998,1735138145908,-500.0,0.00010075,2]
[346636999,1735138145929,-554.64,0.00010075,2]
[346637000,1735138145952,-500.0,0.00010075,2]
[346637001,1735138145974,-160.5019274,0.00010075,2]
[346637002,1735138145996,-500.0,0.00010075,2]
[346637003,1735138146017,-605.55,0.00010075,2]
[346637004,1735138146041,-631.7,0.00010075,2]
[346637005,1735138146065,-1723.34,0.00010075,2]
[346637006,1735138146087,-500.0,0.00010075,2]
[346637007,1735138146110,-500.0,0.00010075,2]
[346637008,1735138146132,-4607.44,0.00010075,2]
[346637009,1735138146158,-500.0,0.00010075,2]
[346637010,1735138146181,-553.47,0.00010075,2]
[346637011,1735138146206,-500.0,0.00010075,2]
[346637012,1735138146230,-500.0,0.00010075,2]
[346637013,1735138146252,-500.0,0.00010075,2]
[346637014,1735138146274,-502.13145983,0.00010075,2]
[346637015,1735138146295,-595.40184192,0.00010075,2]
[346637016,1735138146319,-569.78,0.00010075,2]
[346637017,1735138146342,-500.0,0.00010075,2]
[346637018,1735138146364,-500.0,0.00010075,2]
[346637019,1735138146385,-500.0,0.00010075,2]
[346637020,1735138146406,-500.0,0.00010075,2]
[346637021,1735138146428,-500.0,0.00010076,4]
[346637022,1735138146451,-500.0,0.00010076,2]
[346637023,1735138146474,-500.0,0.00010076,2]
[346637024,1735138146496,-567.89376908,0.00010076,2]
[346637025,1735138146519,-500.63681276,0.00010076,2]
[346637026,1735138146541,-500.0,0.00010076,2]
[346637027,1735138146564,-500.0,0.00010076,2]
[346637028,1735138146586,-581.7887947,0.00010076,2]
[346637029,1735138146607,-500.47674536,0.00010076,2]
[346637030,1735138146629,-500.0,0.00010076,2]
[346637031,1735138146652,-500.0,0.00010076,2]
[346637032,1735138146674,-500.0,0.00010076,2]
[346637033,1735138146696,-502.42405366,0.00010076,2]
[346637034,1735138146717,-500.0,0.00010076,2]
[346637035,1735138146739,-502.24087025,0.00010076,2]
[346637036,1735138146760,-500.0,0.00010076,2]
[346637037,1735138146782,-722.04,0.00010076,2]
[346637038,1735138146803,-500.0,0.00010076,2]
[346637039,1735138146825,-1160.86,0.00010076,2]
[346637040,1735138146846,-500.50387808,0.00010078,2]
[346637041,1735138146867,-500.40986461,0.00010078,2]
[346637042,1735138146888,-500.0,0.00010078,2]
[346637043,1735138146908,-500.0,0.00010078,2]
[346637044,1735138146930,-157.18,0.00010349,2]
[346637045,1735138146953,-500.0,0.00010349,2]
[346637046,1735138146975,-500.0,0.00010349,2]
[346637047,1735138146997,-379.73,0.00010349,2]
[346637048,1735138147019,-500.0,0.00010349,2]
[346637049,1735138147043,-648.0,0.00010349,2]
[346637050,1735138147068,-500.0,0.00010349,2]
[346637051,1735138147089,-500.0,0.00010349,2]
[346637052,1735138147110,-500.0,0.00010349,2]
[346637053,1735138147132,-417.1,0.00010349,2]
[346637054,1735138147154,-500.0,0.00010349,2]
[346637055,1735138147177,-500.0,0.00010349,2]
[346637056,1735138147200,-235.82,0.00010349,2]
[346637057,1735138147222,-377.56,0.00010349,2]
[346637058,1735138147244,-231.21,0.00010349,2]
[346637059,1735138147269,-1723.34,0.00010349,2]
[346637060,1735138147291,-554.05,0.00010349,2]
[346637061,1735138147314,-500.0,0.00010349,2]
[346637062,1735138147339,-428.27220234,0.00010349,2]
[346637063,1735138148299,6018.0,0.00023,120]
[346637064,1735138169110,-500.0,0.00010074,2]
[346637065,1735138169134,-500.0,0.00010075,2]
[346637066,1735138169158,-37.0752,0.00010075,2]
[346637067,1735138185993,-462.9248,0.00010075,2]
[346637068,1735138186023,-343.3704775,0.00010075,2]
[346637069,1735138210995,-159.28732219,0.00010075,2]
[346637070,1735138211021,-500.0,0.00010075,2]
[346637071,1735138211047,-489.54673706,0.00010075,2]
[346637072,1735138211082,-10.45326294,0.00010075,2]
[346637073,1735138211110,-541.34009074,0.00010075,2]
[346637164,1735138232915,-200.74990926,0.00010075,2]
[346637167,1735138232925,-500.0,0.00010075,2]
[346637169,1735138232934,-500.0,0.00010075,2]
[346637171,1735138232943,-500.0,0.00010075,2]
[346637173,1735138232952,-500.0,0.00010075,2]
[346637175,1735138232962,-4179.16779766,0.00010349,2]
[346637177,1735138232971,-500.0,0.00010349,2]
[346637179,1735138232981,-553.47,0.00010349,2]
[346637181,1735138232990,-500.0,0.00010349,2]
[346637183,1735138232999,-318.27,0.00010349,2]
[346637185,1735138233009,-150.95,0.00010349,2]
[346637187,1735138233018,-500.0,0.00010349,2]
[346637189,1735138233027,-500.0,0.00010349,2]
[346637191,1735138233037,-151.94,0.00010349,2]
[346637193,1735138233046,-500.0,0.00010349,2]
[346637195,1735138233056,-742.09,0.00010349,2]
[346637197,1735138233065,-386.66,0.00010349,2]
[346637199,1735138233074,-500.0,0.00010349,2]
[346637200,1735138233084,-500.0,0.00010349,2]
[346637202,1735138233097,-609.07,0.00010349,2]
[346637204,1735138233107,-250.96280122,0.0001035,2]
[346637206,1735138233117,-1160.86,0.0001035,2]
[346637208,1735138233130,-216.95818629,0.00010351,2]
[346637211,1735138233146,-283.04181371,0.00010351,2]
[346637213,1735138233155,-500.0,0.00010351,2]
[346637215,1735138233165,-500.0,0.00010351,2]
[346637217,1735138233175,-500.0,0.00010351,2]
[346637219,1735138233184,-718.30532745,0.00010623,2]
[346637221,1735138233195,-888.4720842,0.00010623,2]
[346637224,1735138233212,-116.56258835,0.00010623,2]
[346637226,1735138233221,-500.0,0.00010623,2]
[346637228,1735138233232,-3532.78711165,0.00010623,2]
[346637558,1735138238467,-1582.65,0.00010074,2]
[346637559,1735138238478,-500.0,0.00010075,2]
[346637560,1735138238488,-1582.65,0.00010348,2]
[346637561,1735138238498,-774.36018184,0.00010622,2]
[346637562,1735138239190,-808.28981816,0.00010622,2]
[346637563,1735138239200,-1074.65288835,0.00010623,2]
[346637564,1735138239209,-276.47,0.00010623,2]
[346637565,1735138239219,-553.47,0.00010623,2]
[346637566,1735138239228,-503.91,0.00010623,2]
[346637567,1735138239238,-80.10245971,0.00010623,2]
[346637568,1735138239250,-419.89754029,0.00010623,2]
[346637569,1735138239259,-500.0,0.00010623,2]
[346637570,1735138239270,-500.0,0.00010623,2]
[346637571,1735138239279,-742.09,0.00010623,2]
[346637572,1735138239288,-500.0,0.00010623,2]